Cogmind - Beta 16.1 @@@ ROGUE MODE // 2026.02.14 @ 14:15:04 Player: Jiber Result: Destroyed by IB-Y50(R) with Subdweller Machine Gun Performance ------------- Evolutions (0) 0 Regions Visited (3) 600 Robots Destroyed (15) 75 Value Destroyed (535) 535 Prototype IDs (0) 0 Alien Tech Used (0) 0 Bonus (0) 0 TOTAL SCORE: 1210 Bonus ------- None Cogmind --------- Core Integrity 0/250 Matter 241/300 Energy 200/200 System Corruption 0% Temperature Cool (0) Movement Walking (260) Ox2 Location -10/Subcaves Parts ------- > --- POWER (1) -------- Subdweller Power Source > --- PROPULSION (2) --- Aluminum Leg > --- UTILITY (2) ------ Small Storage Unit Makeshift Light Armor Plating > --- WEAPON (2) ------- Battle Cannon Rocket Launcher > --- INVENTORY (8) ---- Ion Engine Light Treads Compact Matter Pod (150) Light Assault Rifle Subdweller Shrapnel Launcher Proton Bomb Trap Proton Bomb Trap Proton Bomb Trap Peak State ------------ > --- POWER ------------ Subdweller Power Source > --- PROPULSION ------- Aluminum Leg Aluminum Leg > --- UTILITY ---------- Small Storage Unit Makeshift Light Armor Plating > --- WEAPON ----------- Battle Cannon Rocket Launcher > --- INVENTORY -------- Ion Engine Light Treads Compact Matter Pod Light Assault Rifle Subdweller Shrapnel Launcher Proton Bomb Trap Proton Bomb Trap Proton Bomb Trap [Rating: 14] Favorites ----------- Power Ion Engine Engine Ion Engine Propulsion Aluminum Leg Treads Light Treads Leg Aluminum Leg Utility Small Storage Unit Storage Small Storage Unit Protection Makeshift Light Armor Plating Weapon EM Pulse Gun Energy Gun EM Pulse Gun Ballistic Gun Assault Rifle Ballistic Cannon Battle Cannon Launcher Rocket Launcher Build | -11 -10 -10 -10 ------- Run | Yrd Mat Min Sub Slots Evolved . | . . . . Power . | . . . . Propulsion . | . . . . Utility . | . . . . Weapon . | . . . . Parts Attached 21 | 6 . 4 11 Power 5 | 1 . 1 3 Engine 5 | 1 . 1 3 Core . | . . . . Reactor . | . . . . Propulsion 6 | 2 . 1 3 Treads 2 | . . . 2 Leg 4 | 2 . 1 1 Wheel . | . . . . Hover . | . . . . Flight . | . . . . Utility 4 | 1 . 2 1 Device . | . . . . Storage 3 | 1 . 2 . Processor . | . . . . Hackware . | . . . . Protection 1 | . . . 1 Artifact . | . . . . Weapon 6 | 2 . . 4 Energy Gun 1 | 1 . . . Energy Cannon . | . . . . Ballistic Gun 3 | 1 . . 2 Ballistic Cannon 1 | . . . 1 Launcher 1 | . . . 1 Special Weapon . | . . . . Impact Weapon . | . . . . Slashing Weapon . | . . . . Piercing Weapon . | . . . . Special Melee Weapon . | . . . . Unidentified Prototypes . | . . . . Parts Lost 5 | . . . 5 Power 1 | . . . 1 Propulsion 3 | . . . 3 Utility . | . . . . Weapon 1 | . . . 1 Highest Loss Streak 1 | . . . 1 To Critical Strikes . | . . . . Average Backups 4 | 2 4 4 4 Power . | . 1 1 . Propulsion 1 | . 2 2 1 Utility . | . . . . Weapon 1 | 1 1 1 2 Tool/Special . | . . . . Unused Backups 1 | . . . 1 Power . | . . . . Propulsion . | . . . . Utility . | . . . . Weapon 1 | . . . 1 Tool/Special . | . . . . Average Slot Usage (%) 97 | . 85 95 99 Engine 13 | . 14 14 13 Treads 7 | . . . 15 Leg 19 | . 28 28 11 Storage 23 | . 14 23 22 Protection 2 | . . . 5 Energy Gun 9 | . 14 14 5 Ballistic Gun 11 | . 14 14 9 Ballistic Cannon 2 | . . . 5 Launcher 3 | . . . 7 Peak Build Rating 14 | 6 6 9 14 Average Rating 9 | 3 6 8 10 On Entrance 5 | . 6 6 9 Avg Prop Armor Cover (%) 9 | . . . 9 Naked Turns . | . . . . Heaviest Build 21 | 14 14 15 21 Greatest Support 40 | 20 20 20 40 Greatest Overweight (x) 3 | 3 . . 1 Average Overweight (x) . | . . . . Largest Inventory Capacity 8 | 8 8 8 8 Average Capacity 7 | 7 8 8 8 Most Carried 8 | 5 4 8 8 Average Carried 7 | 2 4 7 7 Final Capacity 8 | 8 8 8 8 Final Carried 8 | 4 4 8 8 Class Distribution -------------------- 100% | Mutant Dominant Class ---------------- Mutant | -10/Materials Mutant | -10/Mines Mutant | -10/Subcaves Resources | -11 -10 -10 -10 ----------- Run | Yrd Mat Min Sub Matter Collected 671 | 163 . 238 270 Remotely . | . . . . Salvage Created 701 | . . 240 461 Parts 30 | . . 7 23 Haulers Intercepted . | . . . . Recyclers Shooed 1 | . . 1 . Parts Field Recycled . | . . . . Retrieved Matter . | . . . . Parts Self-Destructed 3 | . . . 3 Prevented 2 | . . . 2 Parts Restored . | . . . . Kills | -11 -10 -10 -10 ------- Run | Yrd Mat Min Sub Combat Hostiles Destroyed 13 | . . 2 11 Guns 6 | . . 2 4 Cannons 2 | . . . 2 AOE 4 | . . . 4 Classes Destroyed 3 | . . 2 1 Recycler 2 | . . 2 . Grunt 6 | . . 2 4 Subdweller 7 | . . . 7 Best Kill Streak 4 | . . 1 4 Combat Bots Only 4 | . . 1 4 Max Kills in Single Turn 2 | . . 1 2 Gunslinging . | . . . . Exploded 2 | . . . 2 Melee . | . . . . Uniques/NPCs Destroyed . | . . . . Combat | -11 -10 -10 -10 -------- Run | Yrd Mat Min Sub Hostile Shots Fired 93 | . . 21 72 Missed 25 | . . 6 19 Hits 68 | . . 15 53 Projectile 68 | . . 15 53 Critical Strikes 2 | . . . 2 Damage Taken 1191 | . . 202 989 Core 264 | . . 11 253 Absorbed by Shields . | . . . . Core Remaining (%) 100 | 100 . . . Volleys Fired 62 | . . 19 43 Largest 2 | . . 2 2 Hottest 66 | . . 60 66 Shots Fired 124 | . . 38 86 Gun 105 | . . 38 67 Cannon 10 | . . . 10 Launcher 9 | . . . 9 Special . | . . . . Kinetic 73 | . . 19 54 Thermal . | . . . . Explosive 9 | . . . 9 Electromagnetic 42 | . . 19 23 Robot Hit Streak 12 | . . 7 12 Robot Miss Streak 3 | . . 3 2 Penetration Max . | . . . . Secondary Targets 1 | . . . 1 Max Gunslinging Chain 1 | . . . 1 Shots Hit Robots 86 | . . 19 67 Core Hits 36 | . . 9 27 Critical Kills . | . . . . Critical Parts Destroyed . | . . . . Critical Strikes 3 | . . . 3 Blast 2 | . . . 2 Corrupt 1 | . . . 1 Melee Attacks . | . . . . Impact . | . . . . Slashing . | . . . . Piercing . | . . . . Sneak Attacks . | . . . . Combat Hostiles . | . . . . Follow-up Attacks . | . . . . Damage Inflicted 1469 | . . 243 1226 Guns 819 | . . 238 581 Cannons 144 | . . . 144 Explosions 501 | . . . 501 Melee . | . . . . Ramming 5 | . . 5 . Kinetic 571 | . . 104 467 Thermal . | . . . . Explosive 501 | . . . 501 Electromagnetic 392 | . . 134 258 Impact . | . . . . Slashing . | . . . . Piercing . | . . . . Highest Corruption . | . . . . Average Corruption . | . . . . Corruption Purged . | . . . . Corruption Blocked . | . . . . Overload Shots . | . . . . Overflow Damage . | . . . . Projectiles . | . . . . Explosions . | . . . . Melee . | . . . . Knockbacks . | . . . . Impact . | . . . . Kinetic . | . . . . Secondary . | . . . . Self-Inflicted Damage 21 | . . . 21 Shots 1 | . . . 1 Rammed . | . . . . Targets Rammed 1 | . . 1 . Kicked 1 | . . 1 . Crushed . | . . . . Highest Temperature 81 | . . 81 6 Average Temperature 34 | . . 35 6 Received Heat Transfer 393 | . . 117 276 Siege Activations . | . . . . Martial Activations . | . . . . Shielding Activations . | . . . . Robots Disrupted . | . . . . Combat Hostiles . | . . . . Robots Corrupted 1 | . . . 1 Combat Hostiles 1 | . . . 1 Parts Fried 2 | . . 1 1 Impact Corruptions . | . . . . Robots Melted . | . . . . Combat Hostiles . | . . . . Parts Melted . | . . . . Heat Transferred . | . . . . Parts Sabotaged . | . . . . Parts Stolen . | . . . . Parts Stripped . | . . . . Power Chain Reactions . | . . . . Alert | -11 -10 -10 -10 ------- Run | Yrd Mat Min Sub Maximum Alert Level . | . . . . Low Security (%) 100 | 100 100 100 . Level 1 . | . . . . Level 2 . | . . . . Level 3 . | . . . . Level 4 . | . . . . Level 5 . | . . . . High Security . | . . . . Max Security . | . . . . Peak Influence 45 | . . 45 . Initial . | . . . . Average 4 | . . 4 . Influence Increases 190 | . . 75 115 Destroy 0b10 Robot/C 120 | . . 40 80 Destroy 0b10 Robot/NC 10 | . . 10 . Destroy Leader 30 | . . 10 20 Lose Combat Pursuer 30 | . . 15 15 Influence Decreases 190 | . . 75 115 Time Decay 190 | . . 75 115 Squads Dispatched . | . . . . Investigation . | . . . . Extermination . | . . . . Reinforcement . | . . . . Assault . | . . . . Garrison . | . . . . Intercept . | . . . . Searches Triggered . | . . . . Construction Impeded . | . . . . Haulers Reinforced . | . . . . Active Scanning Responses . | . . . . Cargo Convoy Interrupts . | . . . . Stealth | -11 -10 -10 -10 --------- Run | Yrd Mat Min Sub Distress Signals . | . . . . Communications Jammed . | . . . . Distress Signals . | . . . . Times Spotted 16 | . . 3 13 Peak Tracking Total 3 | . . 2 3 Tactical Retreats 2 | . . 1 1 Traps | -11 -10 -10 -10 ------- Run | Yrd Mat Min Sub Traps Triggered 1 | . . . 1 Indirectly . | . . . . Trap Hack Attempts . | . . . . Triggered . | . . . . Disarmed . | . . . . Reprogrammed . | . . . . Reused . | . . . . Traps Extracted . | . . . . Installed 1 | . . 1 . Triggered . | . . . . Most Traps Carried 4 | . . 4 3 Machines | -11 -10 -10 -10 ---------- Run | Yrd Mat Min Sub Machines Disabled . | . . . . Max in Single Turn . | . . . . Machines Repaired . | . . . . Machines Dismantled . | . . . . Machines Sabotaged . | . . . . Overloaded Fab Kills . | . . . . Hacking | -11 -10 -10 -10 --------- Run | Yrd Mat Min Sub Machines Accessed . | . . . . Terminals . | . . . . Fabricators . | . . . . Repair Stations . | . . . . Recycling Units . | . . . . Scanalyzers . | . . . . Garrison Access . | . . . . Total Hacks . | . . . . Successful . | . . . . Failed . | . . . . Catastrophic . | . . . . Database Lockouts . | . . . . Manual . | . . . . Terminals . | . . . . Fabricators . | . . . . Repair Stations . | . . . . Recycling Units . | . . . . Scanalyzers . | . . . . Garrison Access . | . . . . Terminal Hacks . | . . . . Fabricator Hacks . | . . . . Repair Station Hacks . | . . . . Recycling Unit Hacks . | . . . . Scanalyzer . | . . . . Garrison Access Hacks . | . . . . Unauthorized Hacks . | . . . . Terminals . | . . . . Fabricators . | . . . . Repair Stations . | . . . . Recycling Units . | . . . . Scanalyzers . | . . . . Garrison Access . | . . . . Data Cores Recovered . | . . . . Used . | . . . . Hacking Detections . | . . . . Full Trace Events . | . . . . Feedback Events . | . . . . Feedback Blocked . | . . . . Robot Schematics Acquired . | . . . . Robots Built . | . . . . Authchips . | . . . . Time . | . . . . Total Robot Build Rating . | . . . . Part Schematics Acquired . | . . . . Parts Built . | . . . . Authchips . | . . . . Time . | . . . . Total Part Build Rating . | . . . . Part Studies Acquired . | . . . . Parts Repaired . | . . . . Time . | . . . . Parts Recycled . | . . . . Recycled Matter . | . . . . Retrieved Matter . | . . . . Retrieved Components . | . . . . Parts Scanalyzed . | . . . . Part Schematics Acquired . | . . . . Parts Damaged . | . . . . Bothacking | -11 -10 -10 -10 ------------ Run | Yrd Mat Min Sub Used RIF Installer . | . . . . Robots Hacked . | . . . . Non-combat . | . . . . Combat . | . . . . Robot Hacks Applied . | . . . . Relay Couplers Released . | . . . . Fabnet Peak Effective % . | . . . . Robots Rewired . | . . . . Allies Hacked . | . . . . Hacks Repelled . | . . . . Allies | -11 -10 -10 -10 -------- Run | Yrd Mat Min Sub Total Allies . | . . . . Largest Group . | . . . . Highest-Rated Group . | . . . . Highest-Rated Ally . | . . . . Total Orders . | . . . . Ally Attacks . | . . . . Total Damage . | . . . . Kills . | . . . . Allies Corrupted . | . . . . Allies Melted . | . . . . Intel | -11 -10 -10 -10 ------- Run | Yrd Mat Min Sub Active Infowar (turns) . | . . . . Robot Analysis Total . | . . . . Derelict Logs Recovered 1 | . . 1 . Drone Launches . | . . . . Drone Recoveries . | . . . . Exploration | -11 -10 -10 -10 ------------- Run | Yrd Mat Min Sub Turns Passed 1855 | 60 14 847 934 Spaces Moved 1044 | 38 12 531 463 Core 16 | 16 . . . Treads 268 | . . . 268 Legs 760 | 22 12 531 195 Wheels . | . . . . Hover . | . . . . Flight . | . . . . Fastest Speed 50 | 50 120 120 120 Average Speed 142 | 118 120 120 170 Slowest Speed 200 | 200 120 120 190 Overloaded Moves . | . . . . Propulsion Burnouts . | . . . . Robots Hopped . | . . . . Potential Cave-ins . | . . . . Cave-ins Triggered . | . . . . Exploration Rate (%) 29 | 3 4 83 29 Regions Visited 3 Branch Regions 2 Pre-discovered Areas 1 | . . 1 . Known Exits Taken . | . . . . Unknown Exits Taken 3 | 1 1 1 . Scrap Searched 3 | . . . 3 Spaces Dug . | . . . . Terrain Destroyed 42 | . . . 42 Melee . | . . . . Projectile . | . . . . AOE 42 | . . . 42 Terrain Rammed . | . . . . Walls Destroyed . | . . . . Machines Disabled . | . . . . Actions | -11 -10 -10 -10 --------- Run | Yrd Mat Min Sub Total 1294 | 53 11 704 526 Wait 140 | . . 140 . Move 1041 | 37 11 530 463 Hop . | . . . . Pick Up 19 | 10 . 5 4 Fast Attach 2 | . . 1 1 Attach 10 | 6 . . 4 Detach . | . . . . Swap 11 | . . 3 8 Drop 7 | . . 4 3 Fire 62 | . . 19 43 Melee . | . . . . Ram . | . . . . Kick 1 | . . 1 . Crush . | . . . . Escape Stasis . | . . . . Rewire . | . . . . Trap 1 | . . 1 . Miscellaneous . | . . . . Route ------- -11/Scrapyard -10/Materials -10/Mines (discovered 2 exits: [*Mat] / [*Sub]) -10/Subcaves History --------- Turn | Location | Event 15 | -11/Scrapyard | Discovered new exit (range 16) 61 | -11/Scrapyard | Entered Materials 61 | -10/Materials | Discovered new exit (range 7) 75 | -10/Materials | Entered Mines 239 | -10/Mines | Found a hidden stash of uninstalled traps 267 | -10/Mines | Learned location of Storage (-9) 309 | -10/Mines | Build established: Mutant 443 | -10/Mines | Discovered new exit (range 5) 765 | -10/Mines | Received a Rocket Launcher from a helpful Derelict 818 | -10/Mines | Discovered new exit (range 5) 922 | -10/Mines | Entered Subcaves 923 | -10/Subcaves | Approached by a straggling Scientist 1141 | -10/Subcaves | Core integrity fell below 50% 1451 | -10/Subcaves | Disturbed a concealed Subdweller 1501 | -10/Subcaves | Core integrity fell below 20% 1856 | -10/Subcaves | Destroyed by IB-Y50(R) with Subdweller Machine Gun Last Messages --------------- 01484_ Found 41 Matter. 01485_ Acquired 2 matter. 01503_ Lgt. Treads destroyed. 01505_ Acquired 13 matter. 01507_ G-47 Trooper Aluminum Leg blasted off. 01508_ Acquired 6 matter. 01510_ Critical hit (Burn: +37). 01511_ Acquired 10 matter. 01512_ G-34 Mercenary destroyed. 01513_ Acquired 6 matter. 01515_ G-47 Trooper suffers critical hit (Blast). 01515_ G-47 Trooper destroyed. 01516_ Acquired 5 matter. 01522_ Acquired 1 matter. 01529_ Heat Sink fries itself beyond repair. 01533_ Acquired Aluminum Leg. 01538_ Acquired 30 matter. 01850_ Aluminum Leg destroyed. 01856_ The unstable cave ceiling collapses. Map ----- +----------------------------------------------------+ | ?????????????????????????????????????????????????? | | ?????????????????????????????????????????????????? | | ?????????????????????????????????????????????????? | | ?????????????????????????????????????????????????? | | ?????????????????????????????????????????????????? | | ?????????????????????????????????????????????????? | | ?????????????????????????????????????????????????? | | ?????????????????????????????????????????????????? | | ?????????????????????????????????????????????????? | | ?????????????????????????????????????????????????? | | ?????????????????????????????????????????????????? | | ?????????????????????????????????????????????????? | | ?????????????????????????????????????????????????? | | ?????????????????????????????????????????????????? | | ????????###???????????####???#####???#####???????? | | ###?????# ####????##### ##### ###### ####????? | | ##???## #????# ## ## # ##???? | | ##??# #????## ## # #?### | | ##?# ####?????## # [ ### | | ### #####?##### [ ### | | ## ### # ### | | & # #?# | | &% ####### | | ## # # #####! !& ## # # ##### | | #### ## ###???# # ####### ## | | # ##??# # #????####@ ###???# | | ####??# ## ##??????# #?????## # # ## | | ?????# # ???????# #??????#### | | ?????# #### #??????# ##?????????# ##### | | ?????## #??? ##?????## ##??????????# ##???## | | ?????? ??? ##????### #???????????# #?????# | | ?????## ??? ??????# # ##???????????# ##????# | | ?????? ???#??????## #???????????# ##??## | | ?????? ???????????# ##??????????## #### | | ????? ### ????????????# ##??????????# | | ?????#???#????????????## R #??????????#### | | ??????????????????????# #?????????????## | | ?????????????????????? #??????????????# | | ?????????????????????? #??????????????# ## | | ????????????????????? ## #??????????????###? | | ??????????????????? # ##? #?????????????????? | | ?????????????????? ? ##??? # #?????????????????? | | ????????????????? ? ????? ##?????????????????? | | ??????????????? ? ??????? ???????????????????? | | ??????????????"""?""""??????? ??????????????????? | | ?????????????????""""????????? ??????????????????? | | ?????????????????????????????? #?????????????????? | | ???????????????????????????????#?????????????????? | | ?????????????????????????????????????????????????? | | ?????????????????????????????????????????????????? | +----------------------------------------------------+ Best States ------------- Heat Dissipation 25 Energy Generation 15 Energy Capacity 250 Matter Stores 450 Matter Capacity 450 Sight Range 16 Terrain Scan Density 10 Armor Coverage 100 Evasion (%) 55 Recoil Reduction 2 Item Schematics ----------------- None Robot Schematics ------------------ None Fabricated ------------ Nothing Repaired ---------- Nothing Studied --------- None Alien Tech Used ----------------- None Achievements -------------- None Challenges ------------ None Game ------ Seed CoolingMappingBeacon Manual? 0 Play Time 00:13:20 Cumulative 54.4 hours Start 2026.02.14 @ 13:38:38 End 2026.02.14 @ 14:15:04 Sessions 3 Manual Loads 0 Difficulty Rogue Special Mode None Game No. 69 Rogue 69 Adventurer 0 Explorer 0 Win Type - Total 1 Types 0/0/1/0/0/0/0/0/0/0 Lore% 30 Gallery% 38 Achievement% 28 Wizard Run 0 Options --------- Layout 1 ASCII 0 Keyboard 0 Movement Mouse Keybinds 0 Fullscreen 2 Font 32/SmallcapsGlow Map View 50x35 Zoom Use 0% Tactical HUD 1 Map Filters NONE Filters NONE Steam 1 RUN: d0fb08dd-4760-46f5-90b7-080c297bc6ca